bitfinex/quotes_SOLUSD_20260113
["timestamp","ask_amount","ask_price","bid_price","bid_amount"]
[1768263737112,1e-08,139.04,139.03,2.93953361]
[1768263737300,1e-08,139.04,139.03,0.7112748]
[1768263738326,1e-08,139.04,139.03,7.90396702]
[1768263739928,1e-08,139.04,139.02,7.90439456]
[1768263740401,1e-08,139.04,139.03,7.19269222]
[1768263742199,1e-08,139.04,139.02,7.90437731]
[1768263743416,1e-08,139.04,139.02,7.19310251]
[1768263743417,0.42433152,139.04,139.02,7.19310251]
[1768263743614,0.42433152,139.04,139.01,7.1935694]
[1768263745817,0.42433152,139.04,139.0,10.13360767]
[1768263746240,7.61667693,139.04,138.99,9.42274721]
[1768263746548,0.099,139.02,138.98,0.7112748]
[1768263746717,0.099,139.02,138.99,7.19472]
[1768263749042,0.099,139.02,138.98,7.19510512]
[1768263749233,0.32207819,139.01,138.98,7.19525771]
[1768263749533,0.32207819,139.01,138.98,7.19511379]
[1768263754749,0.32207819,139.01,138.98,7.85678662]
[1768263755044,0.2920782,139.01,138.98,7.85678662]
[1768263755443,7.48588857,139.01,138.98,0.66167283]
[1768263755637,0.2920782,139.01,138.98,0.66167283]
[1768263758049,10.77316061,139.02,138.98,0.66167283]
[1768263762759,0.099,139.02,138.98,0.66167283]
[1768263762960,3.57970752,139.02,138.98,0.66167283]
[1768263763753,3.48070752,139.01,138.98,0.66167283]
[1768263764134,3.48070752,139.0,138.97,0.66167283]
[1768263764674,3.48070752,139.0,138.96,8.14196189]
[1768263764675,3.55164536,139.0,138.96,8.14196189]
[1768263764830,3.76929493,138.97,138.89,0.66167283]
[1768263765152,3.48070752,138.96,138.93,0.66167283]
[1768263766151,10.67721432,138.96,138.93,0.66167283]
[1768263769178,7.19535137,138.98,138.94,0.66167283]
[1768263769959,0.91537681,139.05,138.98,0.66167283]
[1768263770151,1e-08,139.04,139.03,0.66167283]
[1768263770354,1e-08,139.06,139.04,0.28432314]
[1768263770555,1e-08,139.06,139.04,3.76503066]
[1768263771647,1e-08,139.06,139.04,0.28432314]
[1768263771946,1e-08,139.06,139.03,10.67339974]
[1768263772346,1e-08,139.06,139.04,0.66167283]
[1768263772844,1e-08,139.06,139.04,0.5488064]
[1768263776265,1e-08,139.06,139.05,0.66167283]
[1768263777553,1e-08,139.06,139.03,11.3348952]
[1768263778255,0.2,139.1,139.07,0.66167283]
[1768263778462,0.91859547,139.1,139.06,3.76503066]
[1768263779568,0.91859547,139.1,139.07,7.19062342]
[1768263783375,0.91859547,139.1,139.02,52.56617936]
[1768263783376,0.71859547,139.07,139.03,0.39325239]
[1768263783574,0.71859547,139.07,139.04,7.19217007]
[1768263788884,21.8,139.17,139.09,0.39325239]
[1768263788885,0.86602101,139.14,139.09,0.39325239]
[1768263789084,1e-08,139.15,139.11,0.1403999]
[1768263789267,0.2,139.16,139.14,0.71633193]
[1768263790188,0.2,139.2,139.14,0.71633193]
[1768263790485,0.2,139.2,139.15,4.19703945]
[1768263790783,0.2,139.2,139.15,7.18627695]
[1768263790784,3.68070752,139.2,139.15,7.18627695]
[1768263791165,0.66602101,139.19,139.15,7.18627695]
[1768263791990,0.66602101,139.19,139.15,11.3833164]
[1768263792191,0.66602101,139.19,139.15,4.19703945]
[1768263792379,0.66602101,139.19,139.15,11.38343937]
[1768263792986,0.66602101,139.19,139.15,7.90273185]
[1768263793209,0.70293305,139.18,139.15,7.18639992]
[1768263793868,0.70293305,139.17,139.14,7.18696255]
[1768263794473,0.70293305,139.17,139.13,8.15128722]
[1768263794673,0.70293305,139.18,139.14,4.16055147]
[1768263794875,0.70293305,139.18,139.14,7.86669578]
[1768263795173,0.70293305,139.18,139.14,11.3474033]
[1768263795398,0.70293305,139.18,139.14,7.18685183]
[1768263795692,0.70293305,139.18,139.14,10.66755935]
[1768263797092,0.70293305,139.17,139.13,7.86725322]
[1768263797288,0.70293305,139.17,139.13,11.34796074]
[1768263801676,0.70293305,139.17,139.13,10.66811679]
[1768263803999,0.70293305,139.17,139.13,11.34796074]
[1768263807005,0.2,139.2,139.14,4.16055147]
[1768263807006,0.70293305,139.18,139.14,4.16055147]
[1768263808289,0.70293305,139.18,139.15,7.18648939]
[1768263808805,0.70293305,139.18,139.15,10.66719691]
[1768263809099,0.70293305,139.18,139.15,7.18648939]
[1768263811694,0.70293305,139.18,139.15,10.66719691]
[1768263811880,0.70293305,139.18,139.15,7.18648939]
[1768263814415,0.70293305,139.17,139.15,7.18648939]
[1768263817092,0.70293305,139.17,139.14,7.18700589]
[1768263817292,0.65630471,139.16,139.14,7.18700589]
[1768263819016,0.65630471,139.16,139.13,7.18734186]
[1768263820409,0.65630471,139.18,139.11,2.90630471]
[1768263820610,0.65630471,139.17,139.12,0.6844091]
[1768263820798,0.65630471,139.17,139.13,0.6844091]
[1768263821104,0.65630471,139.17,139.14,0.6844091]
[1768263821299,2.87820032,139.17,139.14,0.6844091]
[1768263821510,0.65630471,139.17,139.14,10.09312746]
[1768263822494,8.04050205,139.2,139.16,2.90630471]
[1768263822798,0.65630471,139.19,139.16,0.6844091]
[1768263822996,0.65630471,139.19,139.15,2.90630471]
[1768263823603,0.65630471,139.19,139.15,10.09252965]
[1768263826422,0.65630471,139.18,139.14,9.40866156]
[1768263829115,0.65630471,139.18,139.14,10.09307066]
[1768263829821,0.65630471,139.15,139.09,18.65833937]
[1768263830024,0.65630471,139.13,139.09,0.6844091]
[1768263830518,0.65630471,139.13,139.09,2.90630471]
[1768263830908,0.65630471,139.13,139.09,10.09577101]
[1768263831499,7.84388216,139.13,139.09,10.09577101]
[1768263831718,0.65630471,139.12,139.09,0.6844091]
[1768263832321,0.65630471,139.12,139.08,0.6844091]
[1768263832535,0.65630471,139.11,139.06,10.09720844]
[1768263832912,0.65630471,139.1,139.06,10.09720844]
[1768263834726,0.65630471,139.1,139.07,0.6844091]
[1768263835508,0.65630471,139.11,139.07,7.87497051]
[1768263836422,0.65630471,139.11,139.08,0.6844091]
[1768263836615,7.84434381,139.12,139.08,0.6844091]
[1768263838029,10.06623942,139.12,139.08,0.6844091]
[1768263838323,0.65630471,139.11,139.08,0.6844091]
[1768263838926,0.65630471,139.11,139.07,7.87497051]
[1768263840212,0.65630471,139.11,139.08,7.87427291]
[1768263840509,7.84434381,139.12,139.08,7.87427291]
[1768263840707,2.87820032,139.14,139.09,0.6844091]
[1768263841021,0.65630471,139.14,139.1,0.6844091]
[1768263841910,7.84336919,139.14,139.1,0.6844091]
[1768263842310,10.0652648,139.14,139.1,0.6844091]
[1768263842625,0.65630471,139.13,139.1,0.6844091]
[1768263843530,7.84385286,139.13,139.1,0.6844091]
[1768263853941,0.72353156,139.1,139.05,0.667987]
[1768263854244,2.22189561,139.08,139.06,0.667987]
[1768263854624,2.94542717,139.08,139.05,0.667987]
[1768263855024,0.72353156,139.08,139.05,0.667987]
[1768263855437,0.69353156,139.08,139.05,0.667987]
[1768263856527,2.91542717,139.08,139.05,0.667987]
[1768263857433,2.22189561,139.07,139.05,0.667987]
[1768263857624,2.22189561,139.07,139.04,0.667987]
[1768263857824,2.19189559,139.07,139.04,0.667987]
[1768263858749,2.22189561,139.09,139.05,0.667987]
[1768263859048,2.94527082,139.09,139.05,0.667987]
[1768263859346,2.94527082,139.09,139.05,7.85948822]
[1768263862747,7.90970155,139.16,139.11,0.667987]
[1768263862920,2.22189561,139.15,139.1,0.667987]
[1768263863532,2.22189561,139.15,139.1,7.85673984]
[1768263864235,0.72353156,139.14,139.1,7.85673984]
[1768263865742,0.72353156,139.14,139.11,2.22189561]
[1768263867853,0.72353156,139.14,139.11,9.41039074]
[1768263871149,0.72353156,139.14,139.11,10.07837774]
[1768263871336,0.72353156,139.15,139.11,10.07837774]
[1768263872048,0.72353156,139.15,139.11,2.88988261]
[1768263872249,0.72353156,139.15,139.11,10.07841153]
[1768263874358,13.12,139.16,139.13,0.667987]
[1768263874653,6.07195779,139.15,139.12,2.94555042]
[1768263874855,0.7176511,139.15,139.12,2.94555042]
[1768263875349,0.7176511,139.15,139.11,11.38584738]
[1768263878047,0.7176511,139.15,139.11,7.91218373]
[1768263878239,0.7176511,139.15,139.11,11.38584738]
[1768263880249,0.7176511,139.15,139.12,3.47366365]
[1768263881949,0.71371872,139.14,139.11,10.66219257]
[1768263883652,0.71371872,139.14,139.12,10.66166465]
[1768263885658,0.71371872,139.14,139.12,3.47366365]
[1768263885858,0.099,139.12,139.09,4.19731846]
[1768263887055,0.099,139.12,139.09,0.72365481]
[1768263888663,13.12,139.16,139.11,4.19731846]
[1768263888664,0.61371872,139.16,139.11,4.19731846]
[1768263888842,7.18565936,139.17,139.1,0.28432314]
[1768263888843,5.35348994,139.15,139.13,4.19731846]
[1768263889043,20.30464204,139.19,139.15,0.72365481]
[1768263889248,0.60857153,139.18,139.15,3.47366365]
[1768263890165,0.60857153,139.18,139.14,4.19731846]
[1768263890572,7.79373888,139.18,139.14,4.19731846]
[1768263891065,7.79373888,139.18,139.14,0.72365481]
[1768263891360,7.79373888,139.18,139.14,4.19731846]
[1768263891567,7.79373888,139.18,139.14,0.72365481]
[1768263891739,7.79373888,139.18,139.14,4.19731846]
[1768263892140,0.60857153,139.18,139.15,0.72365481]
[1768263892963,13.12,139.19,139.16,0.72365481]
[1768263893166,7.9977554,139.2,139.16,4.19731846]
[1768263896467,7.9977554,139.2,139.16,0.72365481]
[1768263898980,7.9977554,139.2,139.16,7.90943388]
[1768263899368,0.2,139.2,139.17,0.72365481]
[1768263899556,0.2,139.2,139.18,0.72365481]
[1768263899881,0.2,139.2,139.18,0.61084888]
[1768263900173,0.2,139.2,139.16,7.18577907]
[1768263900471,0.2,139.2,139.17,10.65911089]
[1768263901663,0.2,139.2,139.17,11.3827657]
[1768263901861,0.2,139.2,139.17,7.90910205]
[1768263902071,7.38398349,139.2,139.17,0.72365481]
[1768263902251,0.2,139.2,139.17,0.72365481]
[1768263902458,7.99363633,139.2,139.16,7.90940307]
[1768263902762,0.9176511,139.2,139.17,0.72365481]
[1768263903574,0.2,139.2,139.17,0.72365481]
[1768263903879,0.2,139.2,139.19,0.72365481]
[1768263904062,0.2,139.2,139.19,0.61645335]
[1768263904263,13.12,139.22,139.19,0.61645335]
[1768263904869,20.30288263,139.22,139.19,0.61645335]
[1768263906773,7.18288263,139.22,139.19,0.61645335]
[1768263907375,0.9176511,139.23,139.19,0.61645335]
[1768263907376,8.100053,139.23,139.19,0.61645335]
[1768263907982,0.41191426,139.22,139.19,0.61645335]
[1768263908481,0.41191426,139.22,139.19,7.80080464]
[1768263908678,0.2,139.23,139.2,0.66944178]
[1768263909173,0.2,139.23,139.21,0.66944178]
[1768263915894,0.2,139.23,139.22,0.71313356]
[1768263917972,0.1,139.24,139.23,0.71313356]
[1768263918185,20.74376978,139.27,139.24,0.71313356]
[1768263918186,20.98691931,139.27,139.24,0.71313356]
[1768263918574,0.68620019,139.27,139.24,0.71313356]
[1768263918775,0.68620019,139.27,139.24,4.18679721]
[1768263919392,0.68620019,139.27,139.23,4.18679721]
[1768263919697,0.68620019,139.27,139.24,0.71313356]
[1768263920180,7.96603287,139.28,139.25,0.71313356]
[1768263920371,7.96603287,139.28,139.24,0.71313356]
[1768263921193,7.96603287,139.28,139.24,7.89494663]
[1768263925698,4.01571431,139.27,139.24,0.71313356]
[1768263925908,0.68475869,139.26,139.23,0.71313356]
[1768263927996,0.68475869,139.26,139.22,11.36940869]
[1768263930696,0.54347774,139.25,139.22,7.89574504]
[1768263932503,7.86702489,139.26,139.23,0.71313356]
[1768263932888,7.86702489,139.26,139.22,7.89574504]
[1768263934109,0.68620019,139.26,139.22,0.71313356]
[1768263934416,0.54205066,139.25,139.21,4.18679721]
[1768263934916,0.54205066,139.25,139.21,0.71313356]
[1768263935914,0.54205066,139.25,139.21,7.89651323]
[1768263937322,0.68475869,139.24,139.21,7.89651323]
[1768263938001,0.54347774,139.21,139.17,7.90039438]
[1768263938311,0.71118217,139.22,139.19,7.89939788]
[1768263940305,13.81118217,139.23,139.2,0.71520525]
[1768263940906,0.71118217,139.23,139.2,0.71520525]
[1768263942628,31.05332136,139.25,139.2,0.71520525]
[1768263942629,7.89274197,139.25,139.21,0.71520525]
[1768263943216,10.112968,139.25,139.21,0.71520525]
[1768263944517,10.112968,139.25,139.21,7.89856379]
[1768263945726,13.1,139.26,139.22,0.71520525]
[1768263945916,13.1,139.26,139.22,7.89802029]
[1768263945917,23.2122779,139.26,139.22,7.89802029]
[1768263946230,23.2122779,139.26,139.22,7.72522554]
[1768263949237,9.40109573,139.26,139.23,0.71520525]
[1768263949529,10.08948103,139.26,139.23,0.71520525]
[1768263951122,6.08157591,139.25,139.22,0.71520525]
[1768263951318,0.7109542,139.25,139.22,0.71520525]
[1768263951712,2.93118023,139.25,139.22,0.71520525]
[1768263952033,0.71073077,139.23,139.2,0.71520525]
[1768263952532,2.9309568,139.23,139.19,7.89940418]
[1768263953043,0.68883218,139.22,139.19,0.71520525]
[1768263953336,2.9314082,139.23,139.19,7.89957151]
[1768263954213,2.9314082,139.23,139.17,20.89858492]
[1768263954214,0.7109542,139.21,139.17,20.89858492]
[1768263954414,0.7109542,139.21,139.18,0.71520525]
[1768263954621,0.7109542,139.21,139.18,7.89983658]
[1768263955433,2.9314082,139.22,139.18,7.89983658]
[1768263957217,10.11430062,139.22,139.18,7.89983658]
[1768263959135,0.6883853,139.21,139.18,7.89983658]
[1768263961415,0.6883853,139.21,139.18,7.18463133]
[1768263961615,0.6883853,139.21,139.17,7.90045228]
[1768263961836,0.68861099,139.19,139.16,0.71520525]
[1768263962026,2.90883702,139.19,139.16,0.71520525]
[1768263962216,0.68861099,139.19,139.16,0.71520525]
[1768263962537,2.90883702,139.19,139.16,7.90094559]
[1768263963144,0.68861099,139.19,139.16,7.90094559]
[1768263964626,0.657478,139.18,139.15,0.66408622]
[1768263965220,2.87770403,139.18,139.15,0.66408622]
[1768263965519,0.657478,139.17,139.14,7.1865918]
[1768263965842,0.657478,139.17,139.14,7.85067802]
[1768263966643,0.657478,139.16,139.13,7.85160868]
[1768263967237,0.657478,139.17,139.13,7.85160868]
[1768263969145,102.9,139.25,139.12,20.18988753]
[1768263969146,0.657478,139.23,139.17,0.66408622]
[1768263969325,13.12,139.26,139.19,2.88431225]
[1768263969652,0.1,139.28,139.22,0.66408622]
[1768263969949,7.58014078,139.27,139.22,0.66408622]
[1768263970146,15.44022603,139.28,139.22,2.88431225]
[1768263970528,2.22022603,139.27,139.22,0.66408622]
[1768263971057,2.22022603,139.27,139.22,7.84665427]
[1768263971436,0.64904286,139.26,139.22,7.84665427]
[1768263972956,0.64904286,139.26,139.22,10.0668803]
[1768263973662,0.64904286,139.26,139.22,28.02407035]
[1768263975349,0.64904286,139.27,139.24,7.18184429]
[1768263976464,0.1,139.28,139.26,0.66092146]
[1768263977564,0.1,139.28,139.25,0.66092146]
[1768263977954,0.1,139.28,139.26,7.18074737]
[1768263978154,0.1,139.29,139.27,2.88114749]
[1768263978349,0.1,139.29,139.27,0.66092146]
[1768263978554,0.1,139.29,139.26,7.18074737]
[1768263978555,0.74354243,139.29,139.26,7.18074737]
[1768263980777,0.74354243,139.29,139.24,7.84276575]
[1768263980778,2.32467145,139.28,139.24,7.84276575]
[1768263980952,0.10444542,139.28,139.24,7.84276575]
[1768263981452,2.32022603,139.29,139.24,7.84276575]
[1768263981453,0.74904286,139.29,139.25,0.66092146]
[1768263982566,10.14864535,139.29,139.25,0.66092146]
[1768263982770,0.099,139.28,139.25,7.84224284]
[1768263983075,0.74904286,139.29,139.25,7.84224284]
[1768263984069,0.1,139.29,139.26,0.66092146]
[1768263984269,0.1,139.29,139.27,0.66092146]
[1768263985253,0.1,139.29,139.27,7.84119506]
[1768263985968,0.1,139.29,139.28,0.66092146]
[1768263986270,0.1,139.29,139.27,7.84119506]
[1768263987562,0.1,139.3,139.28,7.84070319]
[1768263987767,0.1,139.31,139.29,0.66092146]
[1768263987966,0.1,139.31,139.29,0.60813767]
[1768263988162,0.0472261,139.31,139.29,0.60813767]
[1768263988475,0.0472261,139.31,139.29,0.49536377]
[1768263988973,0.64716145,139.31,139.28,7.17978173]
[1768263990479,0.64716145,139.31,139.27,7.18029726]
[1768263990784,0.64716145,139.31,139.27,7.84121872]
[1768263991160,0.49834037,139.32,139.28,0.66092146]
[1768263991559,0.70909757,139.31,139.28,0.66092146]
[1768263991765,0.70909757,139.31,139.27,28.01218791]
[1768263991960,0.70909757,139.31,139.27,25.79196188]
[1768263992162,0.70602107,139.29,139.26,7.18070342]
[1768263992562,2.62471971,139.28,139.24,0.66092146]
[1768263992765,0.40449368,139.28,139.25,0.66092146]
[1768263995561,2.94190976,139.29,139.26,7.18081286]
[1768263996178,2.94190976,139.29,139.25,7.84205273]
[1768263996179,0.38898765,139.28,139.25,7.84205273]
[1768263996478,2.60921368,139.28,139.24,7.88010757]
[1768263999388,3.85675015,139.28,139.24,7.88010757]
[1768264000486,0.38898765,139.28,139.24,7.88010757]
[1768264001669,21.00065172,139.3,139.26,0.69844092]
[1768264001994,0.72168373,139.3,139.27,0.69844092]
[1768264002875,0.72168373,139.3,139.27,7.87856246]
[1768264003390,0.72168373,139.3,139.28,3.4677625]
[1768264004084,0.72168373,139.3,139.26,3.4677625]
[1768264005496,0.38898765,139.29,139.26,10.64830559]
[1768264009396,0.38898765,139.29,139.27,3.4677625]
[1768264015094,0.38898765,139.29,139.26,11.34684308]
[1768264015603,0.38898765,139.29,139.26,7.87908058]
[1768264015783,0.38898765,139.29,139.26,11.34684308]
[1768264020597,0.38898765,139.29,139.27,0.69844092]
[1768264020904,0.38898765,139.29,139.26,11.34684308]
[1768264021412,7.56832618,139.29,139.26,4.16620342]
[1768264021704,5.37639193,139.28,139.26,0.69844092]
[1768264021910,0.38898765,139.29,139.26,0.69844092]
[1768264022095,5.37605159,139.28,139.26,0.69844092]
[1768264022295,0.38898765,139.29,139.26,0.69844092]
[1768264022498,6.09432897,139.28,139.25,0.69844092]
[1768264022800,7.57683803,139.25,139.22,0.69844092]
[1768264022986,11.04460053,139.25,139.22,0.69844092]
[1768264023186,7.57683803,139.25,139.22,0.69844092]
[1768264023814,0.39550949,139.25,139.22,7.88129561]
[1768264024016,5.37277976,139.24,139.22,7.88129561]
[1768264024187,5.37277976,139.23,139.22,0.69844092]
[1768264025484,5.37277976,139.23,139.21,11.32344696]
[1768264025685,7.57684504,139.25,139.21,11.32344696]
[1768264025884,5.36993903,139.24,139.21,11.32344696]
[1768264026095,5.36993903,139.23,139.21,11.32344696]
[1768264026308,7.57684504,139.25,139.21,11.32344696]
[1768264026609,5.36823909,139.24,139.21,11.32344696]
[1768264026813,5.36823909,139.23,139.21,11.32344696]
[1768264027106,0.68196412,139.24,139.21,11.32344696]
[1768264027306,5.36805772,139.23,139.21,11.32344696]
[1768264027509,0.68196412,139.24,139.21,11.32344696]
[1768264027730,5.36707392,139.23,139.21,11.32344696]
[1768264027894,0.68196412,139.24,139.21,11.32344696]
[1768264028211,5.36707393,139.23,139.21,11.32344696]
[1768264028508,10.64882286,139.26,139.21,11.32344696]
[1768264028697,6.04799291,139.25,139.22,0.67253173]
[1768264028897,5.36602879,139.24,139.22,0.67253173]
[1768264029095,0.68196412,139.25,139.22,0.67253173]
[1768264029297,5.36581835,139.24,139.22,0.67253173]
[1768264029496,5.36465987,139.23,139.22,0.67253173]
[1768264029798,5.36465987,139.23,139.21,11.32344696]
[1768264030004,0.68196412,139.25,139.21,11.32344696]
[1768264030212,5.36491027,139.24,139.21,11.32344696]
[1768264030397,5.36491027,139.23,139.21,11.32344696]
[1768264030713,7.86330791,139.25,139.21,11.32344696]
[1768264031010,5.79207984,139.24,139.21,11.32344696]
[1768264031213,5.36376978,139.23,139.22,7.85540775]
[1768264032415,5.36376978,139.23,139.22,11.32317025]
[1768264032996,0.68196412,139.26,139.23,0.67253173]
[1768264033318,0.68196412,139.26,139.23,4.14029423]
[1768264033897,0.68196412,139.26,139.23,3.4677625]
[1768264035517,0.65404834,139.25,139.23,3.4677625]
[1768264036925,0.65404834,139.27,139.24,0.71617979]
[1768264037291,0.65404834,139.27,139.24,4.18394229]
[1768264041824,0.65404834,139.28,139.25,4.18394229]
[1768264042199,13.75404834,139.29,139.26,11.3647258]
[1768264042821,13.75404834,139.29,139.26,4.18394229]
[1768264043310,13.75404834,139.29,139.26,11.36475381]
[1768264044315,13.75404834,139.29,139.27,3.4677625]
[1768264044522,13.1,139.29,139.27,4.18394229]
[1768264044697,0.65404834,139.29,139.27,3.4677625]
[1768264045195,5.3635705,139.28,139.27,3.4677625]
[1768264045818,103.55404834,139.31,139.28,0.71617979]
[1768264046024,0.75404834,139.32,139.29,4.07672636]
[1768264046317,7.93178803,139.32,139.29,4.01672636]
[1768264048238,7.93178803,139.32,139.29,3.90397524]
[1768264048539,7.87904768,139.32,139.29,3.90397524]
[1768264048839,0.04725965,139.32,139.27,17.95074316]
[1768264049127,13.75404834,139.34,139.31,3.4677625]
[1768264049311,0.65404834,139.33,139.31,3.4677625]
[1768264049521,0.65404834,139.33,139.29,7.17908226]
[1768264049522,0.65404834,139.33,139.3,3.4677625]
[1768264051239,0.65404834,139.32,139.27,0.71617979]
[1768264051404,0.65404834,139.32,139.28,3.4677625]
[1768264051607,0.65404834,139.34,139.31,0.71617979]
[1768264051803,0.65404834,139.34,139.32,3.4677625]
[1768264052630,0.65404834,139.34,139.31,3.4677625]
[1768264053032,25.80305683,139.35,139.3,7.89489547]
[1768264053033,18.62667888,139.35,139.33,3.4677625]
[1768264053233,19.28072722,139.35,139.33,3.4677625]
[1768264053433,0.65404834,139.34,139.31,0.71617979]
[1768264053640,0.65404834,139.33,139.28,0.71617979]
[1768264053812,0.65404834,139.33,139.29,3.4677625]
[1768264054540,0.65404834,139.33,139.28,7.89566623]
[1768264054746,0.65404834,139.33,139.29,3.4677625]
[1768264055620,0.68503249,139.32,139.28,11.36342873]
[1768264055940,0.68503249,139.32,139.29,4.14813514]
[1768264057010,0.68503249,139.32,139.29,11.32734546]
[1768264058435,18.62667888,139.35,139.31,3.4677625]
[1768264058631,5.29763687,139.34,139.32,4.03539479]
[1768264058828,19.31171137,139.35,139.32,4.03539479]
[1768264059229,0.68503249,139.34,139.29,25.12737601]
[1768264059526,0.68503249,139.34,139.31,3.4677625]
[1768264061323,0.68503249,139.34,139.31,2.21690467]
[1768264061530,0.68503249,139.33,139.3,10.07573306]
[1768264061735,0.63230786,139.33,139.3,10.07573306]
[1768264063244,0.63230786,139.33,139.3,7.85882839]
[1768264063451,0.63230786,139.33,139.3,2.89727731]
[1768264063837,0.63230786,139.33,139.31,2.21690467]
[1768264064434,0.63230786,139.33,139.3,2.89727731]
[1768264064753,0.63230786,139.33,139.3,0.68037264]
[1768264064946,0.68503249,139.32,139.3,2.21690467]
[1768264065452,0.68503249,139.33,139.3,2.21690467]
[1768264066353,0.68503249,139.33,139.29,7.85947006]
[1768264066540,0.68503249,139.33,139.3,2.21690467]
[1768264067358,0.68503249,139.33,139.3,9.39550912]
[1768264067739,0.68503249,139.33,139.3,7.17860445]
[1768264067947,0.68503249,139.33,139.3,9.39550912]
[1768264069582,0.68503249,139.33,139.3,10.07588176]
[1768264071738,0.68503249,139.33,139.3,7.85897709]
[1768264071963,0.68503249,139.33,139.3,10.07588176]
[1768264072255,0.68503249,139.34,139.31,2.21690467]
[1768264073159,0.68503249,139.34,139.3,10.07588176]
[1768264074160,0.68503249,139.34,139.31,2.21690467]
[1768264074475,0.68503249,139.34,139.31,2.10418004]
[1768264075968,0.68503249,139.33,139.3,2.21690467]
[1768264076159,0.68503249,139.33,139.29,7.17907786]
[1768264076460,0.68503249,139.33,139.29,9.39598253]
[1768264077040,0.68503249,139.33,139.29,10.07635517]
[1768264077456,0.68503249,139.33,139.3,2.21690467]
[1768264078564,0.68503249,139.33,139.29,10.07635517]
[1768264080152,0.68503249,139.31,139.23,0.68037264]
[1768264080353,0.68503249,139.31,139.15,47.4921539]
[1768264080354,0.68503249,139.25,139.21,7.86336435]
[1768264081952,7.86647233,139.25,139.21,7.86336435]
[1768264082274,7.86647233,139.25,139.21,0.68037264]
[1768264082275,0.68503249,139.24,139.21,0.68037264]
[1768264082444,0.68503249,139.24,139.2,10.08099757]
[1768264082647,7.86790851,139.22,139.18,10.08203531]
[1768264082873,7.86790851,139.22,139.18,0.68037264]
[1768264083077,0.68503249,139.22,139.18,7.86519518]
[1768264083372,0.68503249,139.22,139.19,0.68037264]
[1768264084962,7.8680732,139.22,139.18,7.90854168]
[1768264085142,7.8680732,139.22,139.18,10.12544635]
[1768264085345,7.90240319,139.23,139.19,7.90807011]
[1768264085656,7.90240319,139.23,139.19,0.72367929]
[1768264085863,57.45942596,139.28,139.19,0.72367929]
[1768264085864,0.71982552,139.29,139.24,0.09541668]
[1768264086179,0.71982552,139.29,139.26,2.21690467]
[1768264086180,0.71982552,139.28,139.26,2.21690467]
[1768264088070,7.8996879,139.28,139.24,7.27722492]
[1768264088270,7.8996879,139.28,139.26,2.21690467]
[1768264088973,0.71982552,139.27,139.22,2.21690467]
[1768264089185,0.71982552,139.26,139.23,2.21690467]
[1768264089499,0.71982552,139.26,139.24,2.21690467]
[1768264094767,0.65697803,139.27,139.25,2.21690467]
[1768264095372,0.65697803,139.27,139.24,2.21690467]
[1768264096277,7.83742003,139.27,139.23,7.27744891]
[1768264096469,7.83742003,139.27,139.24,2.21690467]
[1768264096669,7.83742003,139.27,139.23,7.27744891]
[1768264096873,0.65697803,139.26,139.23,2.21690467]
[1768264097495,0.65697803,139.26,139.23,9.39920079]
[1768264098595,0.65697803,139.26,139.24,2.21690467]
[1768264099595,0.65697803,139.26,139.23,2.21690467]
[1768264108213,0.65697803,139.26,139.24,2.21690467]
[1768264109306,7.180442,139.27,139.24,2.21690467]
[1768264109512,7.83742003,139.27,139.24,2.21690467]
[1768264110215,0.65697803,139.26,139.24,2.21690467]
[1768264110515,0.65697803,139.27,139.24,9.39859406]
[1768264112108,7.8362443,139.29,139.25,2.31232135]
[1768264112314,5.34519726,139.28,139.26,2.21690467]
[1768264112513,7.8362443,139.29,139.26,2.21690467]
[1768264112714,5.34565847,139.28,139.26,2.21690467]
[1768264112915,7.8362443,139.29,139.26,2.21690467]
[1768264113109,5.3451657,139.28,139.26,2.21690467]
[1768264113315,7.8362443,139.29,139.26,2.21690467]
[1768264113495,5.34630008,139.28,139.26,2.21690467]
[1768264113697,7.8362443,139.29,139.26,2.21690467]
[1768264113898,5.34629438,139.28,139.26,2.21690467]
[1768264114195,7.8362443,139.29,139.26,2.21690467]
[1768264114396,0.65697803,139.29,139.26,9.39757451]
[1768264115110,0.65697803,139.29,139.26,2.21690467]
[1768264115313,5.34861161,139.28,139.26,2.21690467]
[1768264115512,0.65697803,139.29,139.26,2.21690467]
[1768264115719,5.34861732,139.28,139.26,2.21690467]
[1768264115904,0.65697803,139.29,139.26,2.21690467]
[1768264116106,5.34863491,139.28,139.26,2.21690467]
[1768264116311,0.65697803,139.29,139.25,9.49339929]
[1768264117842,0.65697803,139.29,139.26,0.09541668]
[1768264118035,5.35125367,139.28,139.26,0.09541668]
[1768264118328,2.21690467,139.27,139.22,7.18258246]
[1768264118497,6.0161907,139.26,139.22,7.27799914]
[1768264118705,0.66381858,139.27,139.24,0.09541668]
[1768264119003,0.66381858,139.27,139.23,9.39919641]
[1768264119419,0.62840992,139.27,139.23,9.39919641]
[1768264119724,7.80895096,139.27,139.23,9.43460507]
[1768264120099,7.18054104,139.27,139.23,9.43460507]
[1768264120605,7.18054104,139.27,139.23,2.25231333]